bitfinex/quotes_ETHUSD_20260121
["timestamp","ask_amount","ask_price","bid_price","bid_amount"]
[1769013473932,33.40715502,2935.0,2932.7,10.33437962]
[1769013473933,3.40198668,2934.9,2932.7,10.33437962]
[1769013474102,30.0,2934.8,2932.7,10.33437962]
[1769013474431,30.0,2934.6,2932.5,0.002]
[1769013474633,40.94710521,2934.4,2932.5,0.002]
[1769013474927,30.0,2934.2,2932.5,0.002]
[1769013475130,3.40843246,2933.9,2932.5,0.002]
[1769013475328,30.0108342,2933.8,2932.5,0.002]
[1769013475526,17.738693,2934.0,2932.5,0.002]
[1769013475729,3.330777,2934.0,2932.5,0.002]
[1769013475900,30.128,2934.8,2932.5,0.002]
[1769013476100,30.0,2934.4,2932.5,0.002]
[1769013476296,30.0,2934.2,2932.5,0.002]
[1769013476501,3.39115248,2934.7,2932.5,0.002]
[1769013476731,30.0,2934.7,2932.5,0.002]
[1769013477228,30.0,2934.4,2932.5,0.002]
[1769013477537,30.0,2934.1,2932.5,0.002]
[1769013477713,3.40773555,2934.5,2932.5,0.002]
[1769013478033,30.0,2934.4,2932.5,0.002]
[1769013478206,9.052673,2934.2,2932.5,0.002]
[1769013478401,0.0108342,2934.1,2932.5,0.002]
[1769013478723,7.718804,2934.8,2932.6,11.51644954]
[1769013478910,0.001,2935.3,2932.6,11.51644954]
[1769013478911,3.40709655,2935.1,2932.6,11.51644954]
[1769013479114,11.818241,2935.0,2932.6,11.51644954]
[1769013479300,10.628255,2934.8,2932.8,11.51644954]
[1769013479500,7.815255,2934.8,2932.8,11.51644954]
[1769013480041,1.52253376,2934.9,2932.8,11.51644954]
[1769013480334,0.001,2935.3,2933.0,11.51644954]
[1769013480335,0.0118342,2935.3,2933.0,11.51644954]
[1769013480541,0.0118342,2935.3,2932.9,0.564]
[1769013480542,0.001,2935.3,2933.2,11.51644954]
[1769013480833,0.001,2935.3,2933.4,11.51644954]
[1769013481166,7.840076,2935.2,2933.4,11.51644954]
[1769013481346,0.001,2935.3,2933.4,11.51644954]
[1769013481347,0.0108342,2935.1,2933.5,6.81779444]
[1769013482007,0.001,2935.3,2933.5,10.22669166]
[1769013482205,12.574699,2935.2,2933.5,6.81779444]
[1769013482405,25.227079,2935.0,2933.1,3.40926803]
[1769013482741,0.0108342,2934.9,2933.4,3.40897914]
[1769013483040,0.0108342,2934.9,2931.8,11.51644954]
[1769013483041,41.05831905,2934.6,2931.8,11.51644954]
[1769013483228,3.40796782,2934.3,2932.0,3.41060104]
[1769013483424,12.410476,2934.1,2931.9,6.82151504]
[1769013483626,11.165743,2933.9,2931.8,14.92728488]
[1769013483829,11.165743,2933.9,2931.2,3.41152701]
[1769013484029,11.165743,2933.9,2931.8,3.41087066]
[1769013484217,4.460883,2933.9,2931.8,6.82174452]
[1769013484538,17.288814,2933.7,2931.8,3.41087066]
[1769013484742,0.0108342,2933.6,2931.8,6.82174452]
[1769013484961,30.0,2933.9,2931.8,6.82174452]
[1769013485142,3.1242131,2933.8,2931.8,6.82174452]
[1769013485338,0.0108342,2933.7,2931.8,6.82174452]
[1769013485524,41.05831905,2934.2,2931.7,14.92739937]
[1769013485860,41.05831905,2934.2,2930.6,8.64099354]
[1769013485861,11.18631905,2933.7,2930.7,0.566]
[1769013486025,11.05831905,2933.3,2931.0,3.41173417]
[1769013486226,0.5748342,2933.6,2930.7,0.566]
[1769013486227,11.05831905,2933.0,2930.7,0.002]
[1769013486423,30.0,2932.9,2930.7,0.002]
[1769013486861,9.139269,2932.9,2930.7,0.002]
[1769013487058,9.139269,2932.9,2930.9,3.41183865]
[1769013487241,9.139269,2932.9,2930.7,0.002]
[1769013487431,4.392294,2933.0,2931.0,3.41178041]
[1769013487631,30.0,2933.4,2931.0,3.41178041]
[1769013487852,30.0,2933.2,2931.0,6.82358525]
[1769013488257,41.05831905,2933.2,2931.0,3.41178041]
[1769013488455,30.0,2933.1,2931.0,3.41178041]
[1769013488656,0.128,2933.0,2930.7,0.002]
[1769013488861,30.0,2932.9,2930.7,0.002]
[1769013489063,30.0,2932.7,2930.7,0.002]
[1769013489265,3.40994339,2932.6,2930.7,0.002]
[1769013489470,11.05831905,2932.4,2930.7,0.002]
[1769013489656,30.0,2932.1,2930.7,0.002]
[1769013489857,30.0,2932.1,2929.2,14.93029346]
[1769013489858,0.564,2932.0,2929.2,14.93029346]
[1769013490165,7.187625,2931.8,2930.4,3.41250018]
[1769013490368,0.564,2932.3,2930.3,3.41261824]
[1769013490574,30.0,2932.5,2930.7,3.41214675]
[1769013490874,22.770399,2932.6,2930.4,11.51644954]
[1769013491074,22.770399,2932.6,2930.4,14.92893779]
[1769013491229,23.64955,2932.4,2930.5,1.49289378]
[1769013491431,19.519665,2932.3,2929.9,6.82617154]
[1769013491664,18.038929,2932.3,2929.9,6.82617154]
[1769013491880,18.038929,2932.3,2929.9,3.41308577]
[1769013492030,17.87877125,2932.4,2929.8,14.92962306]
[1769013492031,41.05831905,2932.2,2929.8,11.51644954]
[1769013492236,30.0,2932.0,2929.8,3.41316929]
[1769013492454,11.62231905,2932.1,2929.7,0.0016]
[1769013492455,30.0,2931.8,2929.7,0.0016]
[1769013492655,30.0,2931.6,2929.7,0.0016]
[1769013493559,30.0,2931.4,2929.7,0.0016]
[1769013494183,11.05831905,2931.3,2929.7,0.0016]
[1769013494337,10.79766876,2931.5,2929.3,1.41012397]
[1769013494338,0.0008,2930.0,2929.3,1.41012397]
[1769013494534,0.0008,2930.0,2928.0,11.51644954]
[1769013494737,6.194591,2929.9,2928.2,3.41499754]
[1769013495041,4.679492,2929.9,2928.2,3.4150299]
[1769013495239,4.679492,2929.9,2928.4,3.41482223]
[1769013495432,2.080286,2929.9,2928.2,6.83012848]
[1769013495659,0.0008,2930.0,2928.2,21.53021701]
[1769013495853,0.0008,2930.0,2929.9,0.002]
[1769013496272,0.0008,2930.0,2929.6,0.002]
[1769013496437,0.0008,2930.0,2928.3,12.52003773]
[1769013496638,0.0008,2930.0,2928.5,11.28702126]
[1769013497490,0.0008,2930.0,2928.7,11.28502126]
[1769013497777,0.0008,2930.3,2928.9,11.28502126]
[1769013498567,0.0008,2930.3,2928.8,12.43666621]
[1769013498971,1.09641608,2931.9,2928.9,11.28502126]
[1769013499181,15.564368,2932.2,2930.9,0.003]
[1769013499473,4.0,2932.4,2930.9,0.003]
[1769013499658,12.416261,2932.0,2930.9,0.003]
[1769013499858,15.930568,2931.8,2930.9,0.003]
[1769013500070,29.177123,2931.6,2928.9,11.28502126]
[1769013500247,30.0,2932.0,2929.7,3.41322496]
[1769013500448,30.0,2931.8,2929.8,11.62634376]
[1769013500692,3.0564,2931.9,2930.5,6.82468769]
[1769013500997,30.0,2932.9,2930.5,3.41230073]
[1769013501149,35.72903027,2932.7,2929.8,0.3413225]
[1769013501484,30.0,2932.2,2929.9,3.41307635]
[1769013501784,30.0,2932.0,2929.9,6.82616212]
[1769013502079,7.236556,2931.8,2929.9,18.11118338]
[1769013502289,23.768577,2931.6,2930.0,0.89369397]
[1769013502585,30.0,2931.6,2929.7,3.41324654]
[1769013502748,30.0,2931.6,2929.4,3.41359205]
[1769013502945,30.0,2931.4,2929.2,11.28502126]
[1769013503271,30.0,2931.2,2929.5,3.41344857]
[1769013503447,4.527608,2931.2,2929.3,1.12850213]
[1769013503652,3.41122451,2931.5,2929.4,6.82733664]
[1769013503853,2.930499,2931.4,2929.4,6.82733664]
[1769013504279,30.0,2931.2,2929.4,3.41366832]
[1769013504470,30.0,2931.3,2929.4,8.08549593]
[1769013504646,30.0,2931.3,2929.4,4.67182761]
[1769013504988,30.0,2931.1,2928.6,11.28502126]
[1769013505185,30.0,2930.9,2928.6,14.69956793]
[1769013505498,30.0,2930.9,2928.5,0.002]
[1769013505499,30.0,2930.5,2928.5,0.002]
[1769013505659,30.0,2930.3,2928.5,0.002]
[1769013505986,30.0,2930.3,2927.1,0.5656]
[1769013505987,11.12241715,2929.8,2927.1,0.0016]
[1769013506160,30.0,2929.9,2927.1,0.0016]
[1769013506161,30.0,2928.6,2927.1,0.0016]
[1769013506368,11.12241715,2928.9,2927.1,0.0016]
[1769013506369,13.728459,2928.5,2927.1,0.0016]
[1769013506549,1.3728459,2928.4,2927.1,0.0016]
[1769013506754,0.564,2929.2,2927.1,0.0016]
[1769013506981,30.0,2929.0,2927.1,0.0016]
[1769013507188,30.0,2929.3,2927.1,3.41786363]
[1769013507495,3.74564845,2930.2,2927.1,3.41786363]
[1769013507496,6.82663752,2929.7,2927.3,6.83223448]
[1769013507792,30.564,2929.8,2927.4,11.28502126]
[1769013508083,30.0,2929.6,2927.4,11.28502126]
[1769013508853,30.0,2929.6,2927.3,3.41611724]
[1769013509354,3.0692,2929.7,2927.1,3.4178747]
[1769013509355,30.0,2929.2,2927.1,3.4178747]
[1769013509585,3.41401795,2929.1,2927.1,0.0016]
[1769013509786,3.41401795,2929.1,2928.2,0.002]
[1769013509787,30.0,2929.0,2928.2,0.002]
[1769013509963,13.120542,2928.8,2927.1,0.0016]
[1769013510158,10.05438628,2929.6,2927.1,11.28662126]
[1769013510481,30.0,2929.5,2927.1,11.28662126]
[1769013510680,3.759514,2929.5,2927.1,11.28662126]
[1769013510893,3.54120226,2929.8,2927.1,11.28662126]
[1769013511091,3.35412023,2929.7,2927.3,11.28502126]
[1769013511264,30.0,2930.3,2927.3,11.28502126]
[1769013511463,0.0108342,2930.2,2927.3,11.28502126]
[1769013511672,30.0,2929.9,2927.4,6.83200108]
[1769013511868,30.0,2929.7,2927.4,6.83200108]
[1769013512370,30.0,2929.9,2927.4,21.53302288]
[1769013512554,13.684696,2929.7,2927.5,12.54302055]
[1769013512755,3.34129693,2929.8,2927.5,12.54302055]
[1769013512993,30.0,2929.9,2927.5,12.54302055]
[1769013513178,0.128,2930.5,2927.5,12.54302055]
[1769013513179,9.513558,2930.0,2927.5,12.54302055]
[1769013513361,30.0,2930.1,2927.5,12.54302055]
[1769013513717,6.8238425,2930.9,2927.7,11.28502126]
[1769013513989,0.128,2930.7,2927.7,11.28502126]
[1769013514194,30.0,2930.4,2927.9,11.28502126]
[1769013514370,13.044864,2930.2,2927.9,11.28502126]
[1769013514556,0.0108342,2930.1,2927.9,11.28502126]
[1769013514757,30.0,2930.6,2927.9,11.28502126]
[1769013514968,0.128,2930.7,2927.9,11.28502126]
[1769013514969,30.0,2930.4,2927.9,11.28502126]
[1769013515169,30.0,2930.2,2928.1,11.28502126]
[1769013515374,0.0108342,2930.1,2928.1,11.28502126]
[1769013515570,0.128,2930.7,2928.2,6.83013454]
[1769013515790,30.0,2930.5,2928.2,18.1151558]
[1769013515985,30.0,2930.3,2928.2,18.1151558]
[1769013516185,6.82454104,2930.6,2928.1,3.41518149]
[1769013516186,30.0,2930.1,2928.1,3.41518149]
[1769013516389,41.12241715,2929.9,2927.2,0.564]
[1769013516603,3.00108342,2930.2,2927.2,0.564]
[1769013516604,30.0,2929.7,2927.2,0.564]
[1769013517405,30.0,2929.8,2927.6,3.41573471]
[1769013517588,6.82733664,2929.4,2927.2,3.98012489]
[1769013517784,30.0,2929.2,2927.3,3.81428973]
[1769013518014,30.0,2929.2,2927.3,0.39817249]
[1769013518513,7.328991,2929.2,2927.3,0.39817249]
[1769013518814,30.0,2929.6,2927.3,11.68319375]
[1769013519380,30.0,2929.4,2927.3,0.39817249]
[1769013519593,3.41401795,2929.1,2927.3,3.81419613]
[1769013519809,13.717753,2928.9,2927.3,0.39817249]
[1769013520111,0.0108342,2928.8,2927.3,0.39817249]
[1769013520309,30.0,2928.7,2927.1,0.0016]
[1769013520613,0.128,2928.3,2925.5,11.28502126]
[1769013520780,0.128,2928.3,2925.9,3.41766258]
[1769013520781,0.0008,2927.4,2925.9,3.41766258]
[1769013520976,0.0008,2927.4,2926.5,3.41695884]
[1769013521300,0.0008,2927.7,2927.1,3.41630536]
[1769013521612,0.0008,2927.7,2925.9,11.28502126]
[1769013521979,0.0008,2927.7,2926.0,0.33977009]
[1769013522180,19.955706,2927.6,2926.1,1.16247914]
[1769013522414,19.955706,2927.6,2925.4,3.98329455]
[1769013522415,19.955706,2927.6,2925.4,0.565]
[1769013522584,30.0,2927.5,2925.4,11.85002126]
[1769013522908,0.565,2927.5,2926.1,0.002]
[1769013523076,30.0,2927.4,2926.1,0.002]
[1769013523278,30.0,2927.2,2926.1,0.002]
[1769013523474,9.591419,2927.0,2926.1,0.002]
[1769013523681,2.721562,2927.1,2926.1,0.002]
[1769013523881,30.0,2927.0,2925.0,3.46876429]
[1769013524076,30.0,2927.0,2925.0,6.8875677]
[1769013524313,30.0,2927.0,2925.0,0.05]
[1769013524512,11.12241715,2926.7,2925.0,0.05]
[1769013524676,11.12241715,2926.7,2924.1,11.28502126]
[1769013524677,0.0008,2924.9,2924.2,3.41970783]
[1769013524877,0.128,2926.6,2924.2,18.12446782]
[1769013524878,0.565,2926.4,2924.2,18.12446782]
[1769013525118,8.047374,2926.3,2923.9,4.90865909]
[1769013525279,0.565,2926.4,2923.9,1.48863636]
[1769013525280,30.0,2926.4,2923.9,1.48863636]
[1769013525605,3.41751819,2926.1,2924.0,6.83994528]
[1769013525810,9.365977,2926.0,2924.0,6.83994528]
[1769013526013,4.326665,2926.0,2924.0,6.83994528]
[1769013526225,0.565,2925.9,2924.0,3.41997264]
[1769013526416,0.565,2925.8,2924.0,3.41997264]
[1769013526617,0.565,2925.7,2923.9,1.48863636]
[1769013526791,3.00108342,2925.6,2923.9,8.32880843]
[1769013526991,8.785158,2926.1,2924.0,10.80456246]
[1769013527192,8.691764,2926.2,2923.9,4.90867767]
[1769013527499,30.0,2926.0,2923.9,8.32881114]
[1769013527700,6.019229,2925.8,2924.0,10.80456246]
[1769013527912,12.546613,2926.2,2924.0,10.80456246]
[1769013528214,4.614129,2926.0,2924.1,1.91333736]
[1769013528583,4.614129,2926.0,2923.9,8.32881114]
[1769013528783,4.614129,2926.0,2923.9,4.90872154]
[1769013529089,4.614129,2926.0,2923.9,11.7488864]
[1769013529283,30.0,2926.6,2924.0,10.80456246]
[1769013529834,30.0,2926.2,2924.1,6.83971136]
[1769013530018,15.323122,2926.0,2924.2,1.76442738]
[1769013530223,0.0008,2927.7,2924.2,12.56898984]
[1769013530397,30.565,2927.6,2924.4,10.80456246]
[1769013530717,30.565,2927.6,2924.6,10.80456246]
[1769013530718,7.4356332,2927.5,2924.6,10.80456246]
[1769013530929,7.424799,2927.5,2924.6,10.80456246]
[1769013531094,0.565,2927.6,2924.6,10.80456246]
[1769013531095,18.839178,2927.3,2924.6,10.80456246]
[1769013531295,0.565,2927.6,2924.6,10.80456246]
[1769013531296,30.0,2927.1,2924.6,10.80456246]
[1769013531532,30.0,2927.1,2923.6,3.4203303]
[1769013531533,11.78872319,2926.7,2923.2,10.80456246]
[1769013531710,30.0,2926.2,2924.0,3.42763656]
[1769013531908,30.0,2926.2,2924.0,3.41997264]
[1769013532127,0.0108342,2926.1,2923.9,4.90871556]
[1769013532431,30.0,2926.2,2923.9,4.90868625]
[1769013532615,5.060211,2926.0,2924.0,12.37588733]
[1769013532937,7.237439,2926.3,2924.0,12.37588733]
[1769013533710,21.356071,2926.0,2924.1,6.83971136]
[1769013533894,17.185189,2926.0,2924.1,6.83971136]
[1769013534100,0.0108342,2925.9,2924.0,1.57132487]
[1769013534351,11.66072319,2925.7,2921.5,5.24655946]
[1769013534511,11.66072319,2925.7,2921.4,3.42294212]
[1769013534512,0.0008,2923.3,2921.4,3.42294212]
[1769013534835,0.0008,2923.6,2921.4,10.80456246]
[1769013535218,2.080734,2923.4,2921.4,10.80456246]
[1769013535395,0.2081534,2923.4,2921.5,11.36956246]
[1769013535597,0.0008,2923.6,2921.6,6.84556406]
[1769013535598,8.295071,2923.5,2921.6,6.84556406]
[1769013535917,0.0008,2923.6,2922.9,0.002]
[1769013536434,11.66072319,2925.6,2922.9,0.002]
[1769013536598,3.41806854,2925.7,2922.9,10.80656246]
[1769013536599,10.575845,2925.7,2922.9,10.80656246]
[1769013537132,0.565,2926.7,2923.1,10.80456246]
[1769013537335,30.39498632,2926.6,2923.3,10.80456246]
[1769013537546,6.100651,2926.6,2923.6,10.80456246]
[1769013537842,4.997174,2926.9,2924.0,10.80456246]
[1769013538043,17.238801,2927.2,2924.2,10.80456246]
[1769013538246,26.978052,2927.4,2924.2,10.80456246]
[1769013538414,23.456355,2927.2,2924.3,12.59464368]
[1769013538612,12.971063,2927.2,2924.3,12.59464368]
[1769013539110,12.971063,2927.2,2924.4,11.51418743]
[1769013539313,0.128,2926.7,2923.4,14.36977145]
[1769013539508,0.128,2926.7,2921.7,3.42263274]
[1769013539509,27.106052,2926.1,2922.7,0.565]
[1769013539747,11.25299873,2926.5,2922.6,10.94918743]
[1769013539748,26.978052,2925.6,2922.6,10.94918743]
[1769013539948,26.978052,2925.4,2923.0,0.565]
[1769013540114,26.978052,2925.2,2922.6,10.94918743]
[1769013540321,0.128,2924.9,2921.8,10.94918743]
[1769013540627,0.128,2924.9,2921.9,1.65991874]
[1769013540628,26.978052,2924.7,2921.9,1.65991874]
[1769013540829,26.978052,2924.7,2922.2,3.42199621]
[1769013541144,26.978052,2924.5,2921.9,1.09491874]
[1769013541346,26.978052,2924.7,2922.3,0.565]
[1769013541712,2.769567,2924.7,2922.4,6.8436901]
[1769013542042,0.0108342,2924.6,2922.5,0.565]
[1769013542348,10.387785,2924.5,2921.8,10.94918743]
[1769013542647,0.128,2925.3,2922.4,10.94918743]
[1769013542648,26.978052,2925.3,2922.4,10.94918743]
[1769013542809,5.01446,2925.5,2922.4,10.94918743]
[1769013543007,5.125658,2925.7,2922.5,0.565]
[1769013543209,26.978052,2925.7,2922.6,11.51418743]
[1769013543435,18.416539,2925.5,2922.8,10.94918743]
[1769013543649,3.707538,2925.5,2922.8,10.94918743]
[1769013543840,19.34484788,2925.8,2922.9,21.77796653]
[1769013544041,19.34484788,2925.8,2922.9,10.94918743]
[1769013544042,17.6259732,2925.7,2922.9,10.94918743]
[1769013544247,17.6259732,2925.7,2922.7,1.15141874]
[1769013544248,0.128,2925.6,2922.7,1.15141874]
[1769013544413,26.978052,2925.3,2922.8,0.565]
[1769013544951,26.978052,2925.3,2922.8,3.98636333]
[1769013545343,26.978052,2925.3,2922.9,0.565]
[1769013545511,3.029436,2925.4,2922.9,11.51418743]
[1769013545712,0.05,2926.7,2923.0,6.84228532]
[1769013545913,0.05,2926.7,2923.1,2.34414728]
[1769013545914,0.128,2926.1,2923.1,2.34414728]
[1769013546213,14.829271,2925.7,2923.1,1.77914728]
[1769013546454,26.978052,2925.7,2923.1,1.77914728]
[1769013547154,26.978052,2925.5,2923.1,1.77914728]
[1769013547356,0.128,2925.6,2922.5,3.4217181]
[1769013547564,26.978052,2925.5,2923.0,0.565]
[1769013547854,2.109497,2925.3,2923.0,7.40923529]
[1769013548151,7.566059,2925.6,2923.1,10.94918743]
[1769013548313,3.41807184,2925.7,2923.1,10.94918743]
[1769013548314,2.024206,2925.7,2923.1,10.94918743]
[1769013548648,0.0108342,2925.6,2923.1,10.94918743]
[1769013548849,3.41886861,2925.8,2923.1,10.94918743]
[1769013549143,3.41886861,2925.8,2923.0,10.26537795]
[1769013549144,2.041452,2925.7,2923.2,11.51418743]
[1769013549345,0.001,2925.8,2923.3,10.94918743]
[1769013549547,0.001,2925.8,2923.5,10.94918743]
[1769013549918,0.001,2925.8,2923.7,10.94918743]
[1769013550250,6.83186062,2927.5,2924.0,10.94918743]
[1769013550452,26.978052,2927.4,2924.0,10.94918743]
[1769013550657,26.978052,2927.3,2924.0,10.94918743]
[1769013550842,26.978052,2927.1,2924.1,1.22215142]
[1769013551351,26.978052,2927.1,2924.2,0.565]
[1769013552049,26.978052,2926.9,2924.2,3.98469162]
[1769013552249,13.67670368,2927.0,2924.2,3.41969162]
[1769013552250,26.978052,2926.7,2924.2,3.41969162]
[1769013552549,26.978052,2926.5,2924.3,0.565]
[1769013552736,13.738555,2926.3,2924.4,0.74044304]
[1769013552939,2.69888862,2926.4,2924.4,11.68963047]
[1769013553118,27.106052,2927.5,2924.4,11.68963047]
[1769013553315,27.106052,2927.5,2924.5,0.565]
[1769013553316,0.128,2927.3,2924.5,0.565]
[1769013553519,26.978052,2927.2,2924.5,0.565]
[1769013553919,11.227663,2927.3,2924.7,10.94918743]
[1769013554115,0.0108342,2927.2,2924.7,10.94918743]
[1769013554449,26.978052,2927.1,2924.8,0.93707079]
[1769013554652,0.0108342,2927.0,2924.8,1.50207079]
[1769013554953,0.1288,2927.7,2924.8,1.50207079]
[1769013554954,0.0008,2927.7,2925.3,10.94918743]
[1769013555153,5.880129,2927.6,2925.3,10.94918743]
[1769013555351,0.0008,2927.7,2925.4,11.60633885]
[1769013555646,0.0008,2927.7,2925.4,13.37526857]
[1769013555852,26.978052,2929.7,2926.2,11.26160069]
[1769013556230,11.37958622,2929.2,2926.0,6.83525105]
[1769013556441,26.978052,2929.1,2926.1,0.565]
[1769013556641,26.978052,2928.9,2926.2,0.74044304]
[1769013556862,5.631811,2928.7,2926.2,12.00204373]
[1769013557060,20.429721,2928.9,2926.2,12.00204373]
[1769013557216,9.519831,2928.5,2926.3,0.565]
[1769013557423,26.978052,2928.9,2926.3,0.565]
[1769013557662,17.06616124,2929.8,2926.4,1e-08]
[1769013557663,26.978052,2928.7,2926.4,1e-08]
[1769013557867,37.22220429,2928.5,2926.4,1e-08]
[1769013558023,22.119998,2928.4,2926.4,1e-08]
[1769013558222,12.992412,2928.4,2925.6,11.26160069]
[1769013558559,26.978052,2928.2,2925.6,11.26160069]
[1769013558726,26.978052,2927.9,2925.2,0.565]
[1769013559058,26.978052,2927.9,2925.1,3.41866976]
[1769013559242,26.978052,2927.9,2925.2,0.565]
[1769013559556,26.978052,2927.9,2925.4,6.83663505]
[1769013559740,22.017686,2927.9,2925.4,6.83663505]
[1769013559946,22.017686,2927.9,2925.2,0.565]
[1769013559947,7.087963,2927.7,2925.5,4.10183342]
[1769013560148,7.087963,2927.7,2925.1,11.26160069]
[1769013560460,5.516292,2927.5,2925.1,0.565]
[1769013560646,6.795359,2927.7,2925.5,3.41814646]
[1769013560828,0.0108342,2927.6,2925.2,11.26160069]
[1769013561029,9.061215,2927.5,2925.3,3.41838017]
[1769013561225,12.324809,2927.3,2925.4,1.46799809]
[1769013561461,24.652737,2927.1,2925.4,1.46799809]
[1769013561631,26.978052,2927.3,2925.4,1.46799809]
[1769013561961,0.90720492,2927.4,2924.4,11.26160069]
[1769013561962,26.978052,2927.0,2924.4,11.26160069]
[1769013562158,10.24905195,2927.1,2924.6,0.565]
[1769013562159,8.254886,2926.8,2924.6,0.565]
[1769013562360,0.90720492,2927.4,2925.4,3.41829028]
[1769013562541,0.90720492,2927.4,2924.6,11.82660069]
[1769013562542,3.359316,2927.3,2925.5,0.34182903]
[1769013562737,0.001,2927.5,2925.4,0.565]
[1769013562943,0.001,2927.5,2925.4,18.66325795]
[1769013563137,0.001,2927.5,2925.5,11.26160069]
[1769013563441,5.508382,2927.4,2925.6,0.565]
[1769013563645,0.001,2927.5,2925.6,11.82660069]
[1769013563940,7.13221,2927.1,2925.7,1.18266007]
[1769013564261,6.46245,2927.2,2925.7,1.18266007]
[1769013564473,0.0108342,2927.1,2925.7,1.18266007]
[1769013564631,4.067281,2927.2,2925.7,1.18266007]
[1769013564962,26.483499,2927.1,2924.9,11.26160069]
[1769013565166,26.978052,2927.2,2924.9,11.26160069]
[1769013565532,26.978052,2927.0,2924.9,11.26160069]
[1769013565730,26.978052,2927.2,2924.9,11.26160069]
[1769013565962,8.646117,2927.2,2924.9,14.68050625]
[1769013566162,13.594706,2927.0,2925.0,1.46805063]
[1769013566463,0.0108342,2926.9,2925.0,12.72965132]
[1769013566642,0.001,2927.5,2925.0,12.72965132]
[1769013566842,0.001,2927.5,2925.5,11.26160069]
[1769013567343,3.41691869,2927.5,2925.5,11.26160069]
[1769013567656,2.813451,2927.3,2925.6,1.43161462]
[1769013567856,6.709292,2927.3,2925.7,3.41798543]
[1769013568036,0.34169187,2927.4,2925.7,3.98298543]
[1769013568231,0.001,2927.5,2925.7,7.40097086]
[1769013568445,0.001,2927.5,2925.7,3.98298543]
[1769013568865,0.001,2927.5,2925.8,11.26160069]
[1769013569371,23.769986,2927.4,2925.8,0.565]
[1769013569556,23.769986,2927.4,2925.5,0.565]
[1769013569874,17.5294063,2927.1,2923.7,3.42022232]
[1769013570049,26.978052,2926.9,2923.8,11.82660069]
[1769013570241,26.978052,2926.9,2923.3,5.26095087]
[1769013570242,0.0108342,2926.8,2924.3,3.41955162]
[1769013570438,5.570036,2926.7,2924.4,6.83897398]
[1769013570663,0.5570036,2926.6,2924.5,11.94549809]
[1769013570840,2.593965,2926.9,2924.5,11.94549809]
[1769013571051,0.0108342,2926.8,2924.5,11.94549809]
[1769013571372,2.483766,2927.0,2924.6,11.82660069]
[1769013571573,0.001,2927.5,2924.6,11.82660069]
[1769013571874,5.850973,2927.3,2924.8,11.26160069]
[1769013572041,25.65372,2927.1,2924.9,9.05360845]
[1769013572241,15.168879,2926.9,2924.9,9.05360845]
[1769013572437,0.0108342,2926.8,2925.0,0.565]
[1769013572645,25.542059,2927.0,2924.9,9.05360845]
[1769013572962,7.41756518,2927.2,2924.9,9.05360845]
[1769013572963,0.5850973,2927.2,2924.9,23.73412944]
[1769013573162,0.40012627,2927.1,2925.0,11.94549809]
[1769013573341,0.001,2927.5,2925.5,11.26160069]
[1769013573740,0.001,2927.5,2925.6,0.565]
[1769013573942,0.001,2927.5,2925.7,6.83597086]
[1769013574142,0.001,2927.5,2925.8,0.565]
[1769013575364,0.001,2927.5,2925.9,0.565]
[1769013575560,0.001,2927.5,2925.9,11.82660069]
[1769013575751,0.001,2927.5,2926.1,11.26160069]
[1769013576243,0.001,2927.5,2926.2,7.3998028]
[1769013576558,0.001,2927.5,2926.3,0.565]
[1769013576957,0.001,2927.5,2926.4,0.565]
[1769013577955,0.001,2927.5,2926.2,6.8348028]
[1769013578159,0.001,2927.5,2926.3,1.03310778]
[1769013578880,0.001,2927.5,2926.3,0.46810778]
[1769013579071,0.001,2927.5,2926.2,3.4174014]
[1769013579382,0.001,2927.5,2926.2,6.8348028]
[1769013579564,0.001,2927.5,2926.2,3.4174014]
[1769013579767,0.001,2927.5,2926.2,6.8348028]
[1769013579943,6.82920166,2928.6,2926.3,11.26160069]
[1769013580148,0.68292017,2928.5,2926.5,6.83410216]
[1769013580452,0.0108342,2928.4,2926.5,0.565]
[1769013580759,7.128749,2928.8,2926.5,0.565]
[1769013580977,7.128749,2928.8,2926.2,11.26160069]
[1769013580978,4.597663,2928.6,2926.2,11.26160069]
[1769013581150,15.716319,2928.5,2926.4,3.41715979]
[1769013581351,10.558294,2928.5,2926.4,3.41715979]
[1769013581552,12.243279,2928.3,2926.5,0.68344421]
[1769013581751,2.876959,2928.3,2926.5,0.68344421]
[1769013581952,2.876959,2928.3,2926.2,0.565]
[1769013582181,11.30346,2928.1,2926.3,3.41728462]
[1769013582595,2.002298,2928.1,2926.4,0.565]
[1769013583085,2.002298,2928.1,2926.3,3.41728462]
[1769013583286,2.002298,2928.1,2926.3,3.98228462]
[1769013583489,11.613205,2927.9,2926.4,0.73996471]
[1769013583860,3.052801,2927.9,2926.4,0.73996471]
[1769013584060,3.052801,2927.9,2926.4,4.15710648]
[1769013584382,10.314512,2927.9,2926.4,4.15710648]
[1769013584777,10.314512,2927.9,2926.4,0.73996471]
[1769013584980,6.976497,2927.7,2926.4,3.41715891]
[1769013585182,6.976497,2927.7,2924.6,3.41921028]
[1769013585398,6.976497,2927.7,2926.3,3.41722892]
[1769013585689,6.976497,2927.7,2926.4,3.41715174]
[1769013585885,1.71452392,2927.8,2926.4,3.41716412]
[1769013586202,1.71452392,2927.8,2925.4,11.85790792]
[1769013586203,26.978052,2927.6,2925.4,11.85790792]
[1769013586373,0.0108342,2927.5,2925.5,3.41821153]
[1769013586579,26.978052,2927.7,2925.7,3.41794341]
[1769013586773,23.957795,2927.7,2925.7,3.41792902]
[1769013587095,34.27042927,2927.5,2925.2,0.565]
[1769013587263,34.27042927,2927.5,2925.6,3.41801512]
[1769013587264,26.978052,2927.3,2925.6,3.41801512]
[1769013587464,21.975556,2927.1,2925.2,0.565]
[1769013587665,11.59361527,2927.5,2925.2,0.565]
[1769013587666,12.045332,2927.4,2925.3,3.41843912]